{"text_format":"2","workbook":"xlsx","n_sheets":17,"sheets":["Ktg összesítő","Ösztöndíj összesítő","Doktori képzés","KDP ösztöndíj","Témavezető havi juttatása","Váll-i szakértő-havi juttatás","Fokozatmegszerzési díj","54-56.személyi+járulék-lebony.","51. Anyagköltségek","52. Igénybe vett szolg.","53. Egyéb szolgáltatások","11. Immateriális javak","13. Műszaki berend.","14. Egyéb berendezések","nyilatkozat függetlenségre"," lemondó nyilatkozat","lemondási felosztás"],"not_rendered":{"charts":0,"images":0,"macros":0,"external_links":2,"defined_names":19,"comments":0,"pivot_tables":0},"unopened":[],"bounds":{"document_bytes":16777216,"sheet_cells":100000,"run_cost":"one","rows_first":2000,"rows_last":500,"rows_between":2000,"halvings":0,"cell_chars":16384,"cell_head_chars":4096},"cells_cut":0,"cells_raw":0,"read":"whole","date_system":"1900"}

{"sheet":"Ktg összesítő","index":0,"n_rows":50,"n_cols":4,"rows_kept":50,"cut":false,"hidden":false,"merged":[[23,1,23,2],[24,1,24,2],[25,1,25,2],[23,3,23,5],[24,3,24,5],[25,3,25,5],[42,0,42,2],[42,4,42,5],[47,0,47,4],[48,0,48,4],[49,0,49,4],[21,0,26,0],[22,3,22,5],[26,3,26,5],[22,1,22,2],[26,1,26,2],[35,1,35,2],[35,3,35,5],[36,0,36,2],[36,3,36,5],[39,0,39,1],[39,3,39,5],[31,3,31,5],[32,1,32,2],[32,3,32,5],[33,1,33,2],[33,3,33,5],[34,1,34,2],[34,3,34,5],[27,0,35,0],[27,1,27,2],[27,3,27,5],[28,1,28,2],[28,3,28,5],[29,1,29,2],[29,3,29,5],[30,1,30,2],[30,3,30,5],[31,1,31,2],[18,0,18,1],[18,3,19,5],[19,0,19,1],[20,1,20,2],[20,3,20,5],[21,1,21,2],[21,3,21,5],[15,0,15,2],[15,3,15,5],[16,0,16,2],[16,3,16,5],[17,0,17,2],[17,3,17,5],[12,0,12,2],[12,3,12,5],[13,0,13,2],[13,3,13,5],[14,0,14,2],[14,3,14,5],[9,0,9,2],[9,3,9,5],[10,0,10,2],[10,3,10,5],[11,0,11,2],[11,3,11,5],[0,0,0,5],[1,0,1,5],[4,0,4,5],[6,0,6,5],[7,0,7,5],[8,0,8,2],[8,3,8,5]]}
[]
["Az űrlap másolható, alakját és tartalmát kérjük, ne változtassa meg!"]
[]
[]
["Elszámolt költségek összesítő"]
[]
["Számviteli bizonylat a(z) ……………...számú támogatói okiratban foglalt források felhasználásának elszámolásához"]
["A bizonylat formájára és tartalmára a számvitelről szóló 2000. évi C. törvény előírásai az irányadók"]
["Kedvezményezett:",null,null,"Támogatást nyújtó:"]
[null,null,null,"Nemzeti Kutatási, Fejlesztési és Innovációs Hivatal"]
["Kedvezményezett intézmény neve:………………………………",null,null,"címe: "]
[null,null,null,"Magyar Államkincstárnál vezetett  számla"]
["címe: ……………………………………………………",null,null,"Megnevezése:  "]
["Adóazonosító száma: …………………………………",null,null," Nemzeti Kutatási, Fejlesztési és Innovációs Alap, Előirányzat-felhasználási keretszámla: "]
["Pénzintézet: ………………………………………..…..",null,null,"száma:"]
[null,null,null,"10032000-00334806-00000000"]
["Pénzforgalmi jelzőszáma:",null,null,"AHT azonosító:  "]
["………………………………………………..………..",null,null,348962]
["Teljesítés időpontja: (*)",null,"Bizonylat kelte:","Elszámolási bizonylat sorszáma: (**)"]
["         év        hó       nap",null,"         év        hó       nap"]
["Tevékenység ","Költség fajta (Ft-ban)",null,"Támogatás (Ft)"]
["Ösztöndíj (minimum 90%)","55. Személyi jellegű egyéb kifizetések - egyéb (hallgatói ösztöndíj)"]
[null,"54. Bérköltség - egyéb (témavezető)"]
[null,"56. Bérjárulék - egyéb (témavezető)"]
[null,"54. Bérköltség - egyéb (vállalati szakértő)"]
[null,"56. Bérjárulék - egyéb (vállalati szakértő)"]
[null,"55. Személyi jellegű egyéb kifizetések - egyéb (fokozatszerzési díj)"]
["Lebonyolítási költségek (maximum 10%)","11. Immateriális javak"]
[null,"13. Műszaki berendezések, gépek, járművek"]
[null,"14. Egyéb berendezések, gépek, járművek"]
[null,"51. Anyagköltség"]
[null,"52. Igénybe vett szolgáltatások költségei"]
[null,"53. Egyéb szolgáltatások költségei"]
[null,"54. Bérköltség - egyéb"]
[null,"55. Személyi jellegű egyéb kifizetések - egyéb"]
[null,"56. Bérjárulék - egyéb"]
["Összes költség ",null,null,{"$f":"SUM(D22:F36)","v":0}]
[]
[]
["Elszámolt támogatás összesen: ",null,{"$f":"D37","v":0},",azaz……………………………..……………………………….Ft"]
[]
[]
["Kedvezményezett intézmény cégszerű aláírás (***)\n\n ……………………………………………………………………",null,null,"PH."]
[]
[]
[]
[]
["* Az adott elszámolási időszak vége."]
["** Javasolt időszakhoz köthető sorszámot megadni. Pl. (xxxx -1/2020)"]
["*** Az aláírók nevét nyomtatott betűkkel is kérjük kitölteni."]

{"sheet":"Ösztöndíj összesítő","index":1,"n_rows":15,"n_cols":4,"rows_kept":15,"cut":false,"hidden":false,"merged":[[0,0,0,8],[1,0,1,1],[1,2,1,3],[2,0,2,1],[2,2,2,3],[3,0,3,1]]}
["Egyetemi Kutatói Ösztöndíj Program - hallgatói ösztöndíj összesítő"]
["Kedvezményezett intézmény neve:"]
["Támogatói okirat száma:"]
["Az elszámolással érintett időszak kezdete és vége:"]
[]
["Képzési szint","Megítélt intézményi EKÖP keret","ebből legalább ösztöndíjakra fordítandó (90%)","Kifizetett ösztöndíj összege (Ft)"]
["Doktori képzés","n.r.","n.r."]
["ÖSSZESEN",null,{"$f":"B8*0.8","v":0},{"$f":"SUM(D7:D7)","v":0}]
[]
[]
[]
["Budapest, 2025.",null,null," ……………………………………"]
[null,null,null,"Kedvezményezett intézmény cégszerű aláírása*"]
["* Az aláírók nevét nyomtatott betűkkel is kérjük kitölteni."]
[null,null,null,"Ph."]

{"sheet":"Doktori képzés","index":2,"n_rows":21,"n_cols":9,"rows_kept":21,"cut":false,"hidden":false,"merged":[[4,7,5,7],[4,8,5,8],[17,2,17,6],[20,0,20,8],[4,0,5,0],[4,1,5,1],[4,2,5,2],[4,3,5,3],[4,4,5,4],[4,5,4,6],[0,0,0,8],[1,0,1,2],[1,3,1,8],[2,0,2,2],[2,3,2,8],[3,0,3,2],[3,3,3,5],[3,6,3,8]]}
["Egyetemi Kutatói Ösztöndíj Program - hallgatói ösztöndíj részletező"]
["Kedvezményezett intézmény neve:"]
["Támogatói okirat száma:"]
["Az elszámolással érintett időszak kezdete és vége:"]
["Sorszám","Képzési szint","Ösztöndíjas neve","Az ösztöndíjas időszak hossza hónap","A havi ösztöndíj összege                        (Ft)","Az ösztöndíjas időszak",null,"Pénzügyi teljesítés időpontja*","Elszámolt ösztöndíj (Ft)"]
[{"$nulls":5},"kezdete (dátum)","vége (dátum)"]
[1,"doktori képzés",null,null,400000]
[2]
[3]
[4]
[5]
[6]
[7]
[8]
[9]
[10]
[11]
["Összesen:",{"$nulls":7},{"$f":"SUM(I7:I17)","v":0}]
[]
[]
["*Amennyiben az EKÖP ösztöndíjas részére megítélt ösztöndíj havonta, vagy több részletben került kifizetésre, úgy kifizetésenként külön sorban szükséges felvinni."]

{"sheet":"KDP ösztöndíj","index":3,"n_rows":45,"n_cols":8,"rows_kept":45,"cut":false,"hidden":false,"merged":[[44,0,44,3],[46,0,48,7],[4,0,4,7],[6,0,6,1],[6,2,6,3],[6,4,7,4],[6,5,6,7],[43,0,43,7],[0,0,0,3],[0,4,0,7],[1,0,1,3],[1,4,1,7],[2,0,2,3],[2,4,2,7]]}
["Kedvezményezett neve:"]
["Szerződésszám:"]
["Az elszámolással érintett időszak kezdete és vége:"]
[]
["Bérköltség-KDP ösztöndíjas"]
[]
["Projektben résztvevő ",null,"Az elszámolt időszak",null,"Pénzügyi teljesítés időpontja","Projektre elszámolt ösztöndíj"]
["neve","státusza (legördülő lista)\n","kezdete (dátum)","vége (dátum)",null,"Támogatás","Saját forrás","Egyéb forrás"]
{"$rows_empty":36}
["Összesen:",{"$nulls":4},{"$f":"SUM(F9:F43)","v":0},0,0]

{"sheet":"Témavezető havi juttatása","index":4,"n_rows":45,"n_cols":20,"rows_kept":45,"cut":false,"hidden":false,"merged":[[44,0,44,7],[46,1,48,19],[4,1,4,19],[6,1,6,2],[6,3,6,4],[6,5,7,5],[6,6,7,6],[6,7,7,7],[6,8,6,10],[6,11,6,13],[6,14,6,16],[6,17,6,19],[0,1,0,2],[0,3,0,11],[1,1,1,2],[1,3,1,11],[2,1,2,2],[2,3,2,11]]}
[null,"Kedvezményezett neve:",null,{"$f":"'KDP ösztöndíj'!E1","v":0}]
[null,"Szerződésszám:",null,{"$f":"'KDP ösztöndíj'!E2","v":0}]
[null,"Az elszámolással érintett időszak kezdete és vége:",null,{"$f":"'KDP ösztöndíj'!E3","v":0}]
[]
[null,"Bérköltség- Témavezető"]
[]
[null,"Projektben résztvevő ",null,"Az elszámolt időszak",null,"Az adott hónapban a projektre elszámolt munka-órák száma*","Pénzügyi teljesítés időpontja","Állandó dolgozó (Á), vagy megbí-zásos dolgozó (M)  (legördülő menű)","Projektre elszámolt bruttó bér (Ft)",null,null,"Projektre elszámolt egyéb juttatások (Ft) (pld. napidíj, stb.)",null,null,"Projektre elszámolt bruttó bér és juttatások összesen (Ft)",null,null,"Projektre elszámolt bruttó bér járuléka (Ft)"]
["Kapcsolódó KDP ösztöndíjas neve","neve","státusza (legördülő lista)\n","kezdete (dátum)","vége (dátum)",null,null,null,"Támogatás","Saját forrás","Egyéb forrás","Támogatás","Saját forrás","Egyéb forrás","Támogatás","Saját forrás","Egyéb forrás","Támogatás","Saját forrás","Egyéb forrás"]
[{"$nulls":14},{"$f":"I9+L9","v":0},{"$f":"J9+M9","v":0},{"$f":"K9+N9","v":0}]
[{"$nulls":14},{"$f":"I10+L10","v":0},0,0]
[{"$nulls":14},0,0,0]
[{"$nulls":14},0,0,0]
[{"$nulls":14},0,0,0]
[{"$nulls":14},0,0,0]
[{"$nulls":14},0,0,0]
[{"$nulls":14},0,0,0]
[{"$nulls":14},0,0,0]
[{"$nulls":14},0,0,0]
[{"$nulls":14},0,0,0]
[{"$nulls":14},0,0,0]
[{"$nulls":14},0,0,0]
[{"$nulls":14},0,0,0]
[{"$nulls":14},0,0,0]
[{"$nulls":14},0,0,0]
[{"$nulls":14},0,0,0]
[{"$nulls":14},{"$f":"I26+L26","v":0},0,0]
[{"$nulls":14},0,0,0]
[{"$nulls":14},0,0,0]
[{"$nulls":14},0,0,0]
[{"$nulls":14},0,0,0]
[{"$nulls":14},0,0,0]
[{"$nulls":14},0,0,0]
[{"$nulls":14},0,0,0]
[{"$nulls":14},0,0,0]
[{"$nulls":14},0,0,0]
[{"$nulls":14},0,0,0]
[{"$nulls":14},0,0,0]
[{"$nulls":14},0,0,0]
[{"$nulls":14},0,0,0]
[{"$nulls":14},0,0,0]
[{"$nulls":14},0,0,0]
[{"$nulls":14},{"$f":"I42+L42","v":0},0,0]
[{"$nulls":14},0,0,0]
[]
["Összesen:",{"$nulls":7},{"$f":"SUM(I9:I43)","v":0},{"$f":"SUM(J9:J43)","v":0},0,0,0,0,0,0,0,0,0,0]

{"sheet":"Váll-i szakértő-havi juttatás","index":5,"n_rows":45,"n_cols":20,"rows_kept":45,"cut":false,"hidden":false,"merged":[[43,0,43,19],[44,0,44,7],[46,0,46,19],[4,1,4,19],[6,1,6,2],[6,3,6,4],[6,5,7,5],[6,6,7,6],[6,7,7,7],[6,8,6,10],[6,11,6,13],[6,14,6,16],[6,17,6,19],[0,1,0,2],[0,3,0,11],[1,1,1,2],[1,3,1,11],[2,1,2,2],[2,3,2,11]]}
[null,"Kedvezményezett neve:",null,{"$f":"'KDP ösztöndíj'!E1","v":0}]
[null,"Szerződésszám:",null,{"$f":"'KDP ösztöndíj'!E2","v":0}]
[null,"Az elszámolással érintett időszak kezdete és vége:",null,{"$f":"'KDP ösztöndíj'!E3","v":0}]
[]
[null,"Bérköltség- Vállalati szakértő"]
[]
[null,"Projektben résztvevő ",null,"Az elszámolt időszak",null,"Az adott hónapban a projektre elszámolt munka-órák száma*","Pénzügyi teljesítés időpontja","Állandó dolgozó (Á), vagy megbí-zásos dolgozó (M)  (legördülő menű)","Projektre elszámolt bruttó bér (Ft)",null,null,"Projektre elszámolt egyéb juttatások (Ft) (pld. napidíj, stb.)",null,null,"Projektre elszámolt bruttó bér és juttatások összesen (Ft)",null,null,"Projektre elszámolt bruttó bér járuléka (Ft)"]
["Kapcsolódó KDP ösztöndíjas neve","neve","státusza (legördülő lista)\n","kezdete (dátum)","vége (dátum)",null,null,null,"Támogatás","Saját forrás","Egyéb forrás","Támogatás","Saját forrás","Egyéb forrás","Támogatás","Saját forrás","Egyéb forrás","Támogatás","Saját forrás","Egyéb forrás"]
[{"$nulls":14},{"$f":"I9+L9","v":0},{"$f":"J9+M9","v":0},{"$f":"K9+N9","v":0}]
[{"$nulls":14},{"$f":"I10+L10","v":0},0,0]
[{"$nulls":14},0,0,0]
[{"$nulls":14},0,0,0]
[{"$nulls":14},0,0,0]
[{"$nulls":14},0,0,0]
[{"$nulls":14},0,0,0]
[{"$nulls":14},0,0,0]
[{"$nulls":14},0,0,0]
[{"$nulls":14},0,0,0]
[{"$nulls":14},0,0,0]
[{"$nulls":14},0,0,0]
[{"$nulls":14},0,0,0]
[{"$nulls":14},0,0,0]
[{"$nulls":14},0,0,0]
[{"$nulls":14},0,0,0]
[{"$nulls":14},0,0,0]
[{"$nulls":14},{"$f":"I26+L26","v":0},0,0]
[{"$nulls":14},0,0,0]
[{"$nulls":14},0,0,0]
[{"$nulls":14},0,0,0]
[{"$nulls":14},0,0,0]
[{"$nulls":14},0,0,0]
[{"$nulls":14},0,0,0]
[{"$nulls":14},0,0,0]
[{"$nulls":14},0,0,0]
[{"$nulls":14},0,0,0]
[{"$nulls":14},0,0,0]
[{"$nulls":14},0,0,0]
[{"$nulls":14},0,0,0]
[{"$nulls":14},0,0,0]
[{"$nulls":14},0,0,0]
[{"$nulls":14},0,0,0]
[{"$nulls":14},{"$f":"I42+L42","v":0},0,0]
[{"$nulls":14},0,0,0]
[]
["Összesen:",{"$nulls":7},{"$f":"SUM(I9:I43)","v":0},{"$f":"SUM(J9:J43)","v":0},0,0,0,0,0,0,0,0,0,0]

{"sheet":"Fokozatmegszerzési díj","index":6,"n_rows":47,"n_cols":14,"rows_kept":47,"cut":false,"hidden":false,"merged":[[43,0,43,13],[44,0,44,4],[46,0,48,4],[4,0,4,13],[6,0,6,1],[6,2,6,3],[6,4,7,4],[6,5,6,7],[6,8,6,10],[6,11,6,13],[0,0,0,1],[0,2,0,10],[1,0,1,1],[1,2,1,10],[2,0,2,1],[2,2,2,10]]}
["Kedvezményezett neve:",null,{"$f":"'KDP ösztöndíj'!E1","v":0}]
["Szerződésszám:",null,{"$f":"'KDP ösztöndíj'!E2","v":0}]
["Az elszámolással érintett időszak kezdete és vége:",null,{"$f":"'KDP ösztöndíj'!E3","v":0}]
[]
["Fokozatmegszerzési díj"]
[]
["Projektben résztvevő ",null,"Az elszámolt időszak",null,"Pénzügyi teljesítés időpontja","Projektre elszámolt fokozat megszerzési díj járulékok nélkül (Ft)",null,null,"Projektre elszámolt fokozatmegszerzési díj járuléka (Ft)",null,null,"Projektre elszámolt fokozat megszerzési díj járulékokkal együtt összesen(Ft)"]
["neve","státusza\n","kezdete (dátum)","vége (dátum)",null,"Támogatás","Saját forrás","Egyéb forrás","Támogatás","Saját forrás","Egyéb forrás","Támogatás","Saját forrás","Egyéb forrás"]
{"$rows_empty":36}
["Összesen:",{"$nulls":4},{"$f":"SUM(F9:F43)","v":0},0,0,0,0,0,0,0,0]
[]
["* Amennyiben a pályázati felhívás/útmutató megengedi a szabadság, betegszabadság, ünnepnap elszámolását a projekt terhére, úgy szíveskedjenek a feltüntetett munkaórákba beleszámítani ezek idejét is!"]

{"sheet":"54-56.személyi+járulék-lebony.","index":7,"n_rows":29,"n_cols":12,"rows_kept":29,"cut":false,"hidden":false,"merged":[[24,0,24,11],[25,0,25,6],[28,0,28,11],[30,0,30,11],[31,0,31,11],[4,0,4,11],[6,2,6,3],[6,4,7,4],[6,5,7,5],[6,6,7,6],[6,7,7,7],[6,8,7,8],[6,9,7,9],[6,10,7,10],[6,11,7,11],[0,0,0,2],[0,3,0,11],[1,0,1,2],[1,3,1,11],[2,0,2,2],[2,3,2,11]]}
["Kedvezményezett intézmény neve:"]
["Támogatói okirat száma:"]
["Az elszámolással érintett időszak kezdete és vége:"]
[]
["54-56. BÉRKÖLTSÉG, SZEMÉLYI JELLEGŰ EGYÉB KIFIZETÉSEK ÉS BÉRJÁRULÉKOK"]
[]
["Projektben résztvevő dolgozók",null,"Az elszámolt időszak",null,"Az adott hónapban a projektre elszámolt órák száma","Pénzügyi teljesítés időpontja","Állandó dolgozó (Á), vagy megbí-zásos dolgozó (M)  (legördülő menű)","Kinevezésben/Megbízási szerződésben megállapított Bruttó bér","Projektre elszámolt bruttó bér (Ft)","Projektre elszámolt egyéb juttatások (Ft)","Projektre elszámolt bruttó bér és juttatások összesen (Ft)","Projektre elszámolt bruttó bér járuléka (Ft)"]
["neve","státusza \n","kezdete (dátum)","vége (dátum)"]
{"$rows_empty":17}
["Összesen:",{"$nulls":6},{"$f":"SUM(H9:H24)","v":0},0,0,{"$f":"SUM(K9:K24)","v":0},0]
[]
[]
["A jelen táblázatban összesített, a munkavállalóknak kifizetett nettó jövedelem, illetve a munkavállalót és a munkáltatót terhelő adók, járulékok a  jelen támogatás igénylést megelőzően kifizetésre kerültek. Büntetőjogi felelősségem tudatában nyilatkozom hogy a fenti adatok a valóságnak megfelelnek, hitelesek, továbbá, hogy az illetmények számfejtésének és kifizetésének a bizonylatai, valamint a számfejtés alapját képező teljesítésigazolások és a munka- vagy megbízási szerződések a Kedvezményezettnél megtalálhatóak. "]

{"sheet":"51. Anyagköltségek","index":8,"n_rows":27,"n_cols":13,"rows_kept":27,"cut":false,"hidden":false,"merged":[[6,11,7,11],[6,12,7,12],[23,0,23,12],[24,0,24,7],[26,0,26,12],[4,0,4,12],[6,0,7,0],[6,1,7,1],[6,2,7,2],[6,3,7,3],[6,4,7,4],[6,5,7,5],[6,6,7,6],[6,7,7,7],[6,8,6,10],[0,0,0,2],[0,3,0,12],[1,0,1,2],[1,3,1,12],[2,0,2,2],[2,3,2,12]]}
["Kedvezményezett intézmény neve:"]
["Támogatói okirat száma:"]
["Az elszámolással érintett időszak kezdete és vége:"]
[]
["51. Anyagköltségek"]
[]
["Sor-szám","Számviteli bizonylat kiállítójának neve","Adószáma","Számviteli bizonylat sorszáma","Kiállítás kelte","Teljesítés dátuma","Pénzügyi teljesítés időpontja","Gazdasági esemény rövid leírása (utazás időtartama, helye, utazó neve)","Összege (Ft)",null,null,"Projekt terhére elszámolt költségek (Ft)","Tevékenység "]
["szám",{"$nulls":7},"Bruttó","Nettó","ÁFA"]
{"$rows_empty":16}
["Lebonyolitási összesen"]
[]
["A jelen táblázatban összesített számlák és bizonylatok a jelen támogatás igénylés benyújtását megelőzően szakmailag és pénzügyileg teljesítésre kerültek, a projektben történő felhasználás mértéke erejéig kerültek elszámolásra.\nA Kedvezményezett tudomásul veszi, hogy jelen melléklet szerinti számlaösszesítő táblázatok befogadása nem jelenti egyben a táblázatok tartalmának pénzügyi elfogadását, ugyanakkor a számlaösszesítő táblázatok kitöltéséért teljeskörű felelősséggel tartozik. "]

{"sheet":"52. Igénybe vett szolg.","index":9,"n_rows":26,"n_cols":13,"rows_kept":26,"cut":false,"hidden":false,"merged":[[6,11,7,11],[6,12,7,12],[22,0,22,12],[23,0,23,7],[25,0,25,12],[4,0,4,12],[6,0,7,0],[6,1,7,1],[6,2,7,2],[6,3,7,3],[6,4,7,4],[6,5,7,5],[6,6,7,6],[6,7,7,7],[6,8,6,10],[0,0,0,2],[0,3,0,12],[1,0,1,2],[1,3,1,12],[2,0,2,2],[2,3,2,12]]}
["Kedvezményezett intézmény neve:"]
["Támogatói okirat száma:"]
["Az elszámolással érintett időszak kezdete és vége:"]
[]
["52. Igénybe vett szolgáltatások"]
[]
["Sor-szám","Számviteli bizonylat kiállítójának neve","Adószáma","Számviteli bizonylat sorszáma","Kiállítás kelte","Teljesítés dátuma","Pénzügyi teljesítés időpontja","Gazdasági esemény rövid leírása (utazás időtartama, helye, utazó neve)","Összege (Ft)",null,null,"Projekt terhére elszámolt költségek (Ft)","Tevékenység"]
["szám",{"$nulls":7},"Bruttó","Nettó","ÁFA"]
{"$rows_empty":15}
["Lebonyolitási összesen"]
[]
["A jelen táblázatban összesített számlák és bizonylatok a jelen támogatás igénylés benyújtását megelőzően szakmailag és pénzügyileg teljesítésre kerültek, a projektben történő felhasználás mértéke erejéig kerültek elszámolásra.\nA Kedvezményezett tudomásul veszi, hogy jelen melléklet szerinti számlaösszesítő táblázatok befogadása nem jelenti egyben a táblázatok tartalmának pénzügyi elfogadását, ugyanakkor a számlaösszesítő táblázatok kitöltéséért teljeskörű felelősséggel tartozik. "]

{"sheet":"53. Egyéb szolgáltatások","index":10,"n_rows":26,"n_cols":13,"rows_kept":26,"cut":false,"hidden":false,"merged":[[6,11,7,11],[6,12,7,12],[22,0,22,12],[23,0,23,7],[25,0,25,12],[4,0,4,12],[6,0,7,0],[6,1,7,1],[6,2,7,2],[6,3,7,3],[6,4,7,4],[6,5,7,5],[6,6,7,6],[6,7,7,7],[6,8,6,10],[0,0,0,2],[0,3,0,12],[1,0,1,2],[1,3,1,12],[2,0,2,2],[2,3,2,12]]}
["Kedvezményezett intézmény neve:"]
["Támogatói okirat száma:"]
["Az elszámolással érintett időszak kezdete és vége:"]
[]
["53. Egyéb szolgáltatások"]
[]
["Sor-szám","Számviteli bizonylat kiállítójának neve","Adószáma","Számviteli bizonylat sorszáma","Kiállítás kelte","Teljesítés dátuma","Pénzügyi teljesítés időpontja","Gazdasági esemény rövid leírása (utazás időtartama, helye, utazó neve)","Összege (Ft)",null,null,"Projekt terhére elszámolt költségek (Ft)","Tevékenység"]
["szám",{"$nulls":7},"Bruttó","Nettó","ÁFA"]
{"$rows_empty":15}
["Lebonyolitási összesen"]
[]
["A jelen táblázatban összesített számlák és bizonylatok a jelen támogatás igénylés benyújtását megelőzően szakmailag és pénzügyileg teljesítésre kerültek, a projektben történő felhasználás mértéke erejéig kerültek elszámolásra.\nA Kedvezményezett tudomásul veszi, hogy jelen melléklet szerinti számlaösszesítő táblázatok befogadása nem jelenti egyben a táblázatok tartalmának pénzügyi elfogadását, ugyanakkor a számlaösszesítő táblázatok kitöltéséért teljeskörű felelősséggel tartozik. "]

{"sheet":"11. Immateriális javak","index":11,"n_rows":28,"n_cols":16,"rows_kept":28,"cut":false,"hidden":false,"merged":[[27,0,27,15],[6,10,7,10],[6,11,6,13],[6,14,7,14],[6,15,7,15],[24,0,24,15],[25,0,25,6],[4,0,4,15],[6,0,7,0],[6,1,7,1],[6,2,7,2],[6,3,7,3],[6,4,7,4],[6,5,7,5],[6,6,7,6],[6,7,6,8],[6,9,7,9],[0,0,0,2],[0,3,0,15],[1,0,1,2],[1,3,1,15],[2,0,2,2],[2,3,2,15]]}
["Kedvezményezett intézmény neve:"]
["Támogatói okirat száma:"]
["Az elszámolással érintett időszak kezdete és vége:"]
[]
["11. Immateriális javak"]
[]
["Sor-szám","Számviteli bizonylat kiállítójának neve","Adószáma","Számviteli bizonylat sorszáma","Kiállítás kelte","Teljesítés dátuma","Pénzügyi teljesítés időpontja","Amortizáció esetén az elszámolt időszak",null,"amortizá-ciós kulcs %","Gazdasági esemény rövid leírása","Összege (Ft)",null,null,"Projekt terhére elszámolt költségek (Ft)","Tevékenység"]
["szám",{"$nulls":6},"kezdete (dátum)","vége (dátum)",null,null,"Bruttó","Nettó","ÁFA"]
{"$rows_empty":17}
["Lebonyolitási összesen"]
[]
["A jelen táblázatban összesített számlák és bizonylatok a jelen támogatás igénylés benyújtását megelőzően szakmailag és pénzügyileg teljesítésre kerültek, a projektben történő felhasználás mértéke erejéig kerültek elszámolásra.\nA Kedvezményezett tudomásul veszi, hogy jelen melléklet szerinti számlaösszesítő táblázatok befogadása nem jelenti egyben a táblázatok tartalmának pénzügyi elfogadását, ugyanakkor a számlaösszesítő táblázatok kitöltéséért teljeskörű felelősséggel tartozik. "]

{"sheet":"13. Műszaki berend.","index":12,"n_rows":28,"n_cols":16,"rows_kept":28,"cut":false,"hidden":false,"merged":[[27,0,27,15],[6,10,7,10],[6,11,6,13],[6,14,7,14],[6,15,7,15],[24,0,24,15],[25,0,25,10],[4,0,4,15],[6,0,7,0],[6,1,7,1],[6,2,7,2],[6,3,7,3],[6,4,7,4],[6,5,7,5],[6,6,7,6],[6,7,6,8],[6,9,7,9],[0,0,0,2],[0,3,0,15],[1,0,1,2],[1,3,1,15],[2,0,2,2],[2,3,2,15]]}
["Kedvezményezett intézmény neve:"]
["Támogatói okirat száma:"]
["Az elszámolással érintett időszak kezdete és vége:"]
[]
["13. Műszaki berendezések, gépek járművek"]
[]
["Sor-szám","Számviteli bizonylat kiállítójának neve","Adószáma","Számviteli bizonylat sorszáma","Kiállítás kelte","Teljesítés dátuma","Pénzügyi teljesítés időpontja","Amortizáció esetén az elszámolt időszak",null,"amortizá-ciós kulcs %","Gazdasági esemény rövid leírása","Összege (Ft)",null,null,"Projekt terhére elszámolt költségek (Ft)","Tevékenység"]
["szám",{"$nulls":6},"kezdete (dátum)","vége (dátum)",null,null,"Bruttó","Nettó","ÁFA"]
{"$rows_empty":17}
["Lebonyolitási összesen"]
[]
["A jelen táblázatban összesített számlák és bizonylatok a jelen támogatás igénylés benyújtását megelőzően szakmailag és pénzügyileg teljesítésre kerültek, a projektben történő felhasználás mértéke erejéig kerültek elszámolásra.\nA Kedvezményezett tudomásul veszi, hogy jelen melléklet szerinti számlaösszesítő táblázatok befogadása nem jelenti egyben a táblázatok tartalmának pénzügyi elfogadását, ugyanakkor a számlaösszesítő táblázatok kitöltéséért teljeskörű felelősséggel tartozik. "]

{"sheet":"14. Egyéb berendezések","index":13,"n_rows":28,"n_cols":16,"rows_kept":28,"cut":false,"hidden":false,"merged":[[27,0,27,15],[6,10,7,10],[6,11,6,13],[6,14,7,14],[6,15,7,15],[24,0,24,15],[25,0,25,10],[4,0,4,15],[6,0,7,0],[6,1,7,1],[6,2,7,2],[6,3,7,3],[6,4,7,4],[6,5,7,5],[6,6,7,6],[6,7,6,8],[6,9,7,9],[0,0,0,2],[0,3,0,15],[1,0,1,2],[1,3,1,15],[2,0,2,2],[2,3,2,15]]}
["Kedvezményezett intézmény neve:"]
["Támogatói okirat száma:"]
["Az elszámolással érintett időszak kezdete és vége:"]
[]
["14. Egyéb berendezések, gépek, járművek"]
[]
["Sor-szám","Számviteli bizonylat kiállítójának neve","Adószáma","Számviteli bizonylat sorszáma","Kiállítás kelte","Teljesítés dátuma","Pénzügyi teljesítés időpontja","Amortizáció esetén az elszámolt időszak",null,"amortizá-ciós kulcs %","Gazdasági esemény rövid leírása","Összege (Ft)",null,null,"Projekt terhére elszámolt költségek (Ft)","Tevékenység"]
["szám",{"$nulls":6},"kezdete (dátum)","vége (dátum)",null,null,"Bruttó","Nettó","ÁFA"]
{"$rows_empty":17}
["Lebonyolitási összesen"]
[]
["A jelen táblázatban összesített számlák és bizonylatok a jelen támogatás igénylés benyújtását megelőzően szakmailag és pénzügyileg teljesítésre kerültek, a projektben történő felhasználás mértéke erejéig kerültek elszámolásra.\nA Kedvezményezett tudomásul veszi, hogy jelen melléklet szerinti számlaösszesítő táblázatok befogadása nem jelenti egyben a táblázatok tartalmának pénzügyi elfogadását, ugyanakkor a számlaösszesítő táblázatok kitöltéséért teljeskörű felelősséggel tartozik. "]

{"sheet":"nyilatkozat függetlenségre","index":14,"n_rows":31,"n_cols":2,"rows_kept":31,"cut":false,"hidden":false,"merged":[[7,0,7,1],[15,0,15,1],[30,0,30,1]]}
[]
["Egy példányban kitöltve, eredeti aláírással és bélyegzéssel ellátva kell benyújtani."]
[]
[]
[]
[]
[]
["Nyilatkozat az összeférhetetlenségre vonatkozóan"]
[]
[]
[]
["Kedvezményezett intézmény neve"]
["Támogatói okirat száma"]
["Az elszámolással érintett időszak kezdete és vége:"]
[]
["Alulírott <név>, mint a <kedvezményezett intézmény megnevezése> gazdasági vezetője/ cégjegyzésre jogosult vezetője nyilatkozom, hogy a fenti azonosító számú Támogatói okirat  alapján finanszírozott program megvalósításához igénybe vett szolgáltatásokra és beszerzésekre megkötött szerződések a szokásos piaci feltételeknek megfelelően, független felek között, a pályázati kiírásban és a hivatkozott támogatási szerződésben, valamint annak mellékleteiben foglalt előírások szerint jöttek létre."]
[]
[]
["Hely, dátum"]
[]
[]
[]
[null,"………………………………"]
[null,"Kedvezményezett intézmény cégszerű *"]
[null,"aláírása"]
[null,"Ph."]
[]
[]
[]
[]
["* Az aláírók nevét nyomtatott betűkkel is kérjük kitölteni"]

{"sheet":" lemondó nyilatkozat","index":15,"n_rows":31,"n_cols":2,"rows_kept":31,"cut":false,"hidden":false,"merged":[[6,0,6,1],[15,0,15,1],[30,0,30,1]]}
[]
["Egy példányban kitöltve, eredeti aláírással és bélyegzéssel ellátva kell benyújtani."]
[]
[]
[]
[]
["Lemondó Nyilatkozat"]
[]
[]
[]
["Kedvezményezett intézmény neve"]
["Támogatói okirat száma"]
["Az elszámolással érintett időszak kezdete és vége:"]
[]
[]
["Alulírott <név>, mint a <kedvezményezett intézmény megnevezése> gazdasági vezetője/cégjegyzésre jogosult vezetője nyilatkozom, hogy a fenti azonosító számú program megvalósításához a megítélt támogatásból összesen <a ténylegesen elszámolt támogatás összege> Ft került felhasználásra. A fennmaradó <a megítélt és a tényleges támogatás különbsége> Ft támogatást a továbbiakban nem kívánom igénybe venni, így arról lemondok. "]
[]
[]
["Hely, dátum"]
[]
[]
[]
[null,"………………………………"]
[null,"Kedvezményezett intézmény cégszerű *"]
[null,"aláírása"]
[null,"Ph."]
[]
[]
[]
[]
["* Az aláírók nevét nyomtatott betűkkel is kérjük kitölteni"]

{"sheet":"lemondási felosztás","index":16,"n_rows":24,"n_cols":4,"rows_kept":24,"cut":false,"hidden":false,"merged":[[11,3,11,5],[12,3,12,5],[23,0,23,2],[23,3,23,5],[16,3,16,5],[17,3,17,5],[18,3,18,5],[19,3,19,5],[20,1,20,2],[20,3,20,5],[21,1,21,2],[21,3,21,5],[22,0,22,2],[22,3,22,5],[13,0,21,0],[13,1,13,2],[13,3,13,5],[14,1,14,2],[14,3,14,5],[15,1,15,2],[15,3,15,5],[16,1,16,2],[17,1,17,2],[19,1,19,2],[4,0,4,5],[6,1,6,2],[6,3,6,5],[6,6,7,6],[7,1,7,2],[7,3,7,5],[7,0,12,0],[8,3,8,5],[9,3,9,5],[10,3,10,5],[0,0,0,2],[0,3,0,6],[1,0,1,2],[1,3,1,6],[2,0,2,2],[2,3,2,6]]}
["Kedvezményezett intézmény neve:"]
["Támogatói okirat száma:"]
["Az elszámolással érintett időszak kezdete és vége:"]
[]
["Lemondott támogatás összesítő"]
[]
["Költség kategória","Költség fajta",null,"Lemondott támogatás összege (Ft)"]
["Ösztöndíj","55. Személyi jellegű egyéb kifizetések - egyéb (hallgatói ösztöndíj)"]
[null,"54. Bérköltség - egyéb (témavezető)"]
[null,"56. Bérjárulék - egyéb (témavezető)"]
[null,"54. Bérköltség - egyéb (vállalati szakértő)"]
[null,"56. Bérjárulék - egyéb (vállalati szakértő)"]
[null,"55. Személyi jellegű egyéb kifizetések - egyéb (fokozatszerzési díj)"]
["Lebonyolítási költségek","11. Immateriális javak"]
[null,"13. Műszaki berendezések, gépek, járművek"]
[null,"14. Egyéb berendezések, gépek, járművek"]
[null,"51. Anyagköltség"]
[null,"52. Igénybe vett szolgáltatások költségei"]
[null,"53. Egyéb szolgáltatások költségei"]
[null,"54. Bérköltség - egyéb"]
[null,"55. Személyi jellegű egyéb kifizetések - egyéb"]
[null,"56. Bérjárulék - egyéb"]
["Intézményi támogatás összesen (Ft)"]
["Összes lemondott támogatás (Ft)"]